bitfinex/quotes_ETHUSD_20240922
["timestamp","ask_amount","ask_price","bid_price","bid_amount"]
[1727037546872,2.03207892,2583.0,2582.7,5.05259873]
[1727037547176,2.03207892,2583.0,2582.9,1.18076873]
[1727037547976,4.42867892,2583.1,2582.9,1.18076873]
[1727037548917,2.03207892,2583.2,2582.9,5.05235873]
[1727037549095,2.03207892,2583.2,2583.1,1.18076873]
[1727037549488,8.29970892,2583.3,2583.1,1.18076873]
[1727037550002,8.29801594,2583.3,2583.1,1.18076873]
[1727037550681,12.16912594,2583.3,2582.9,1.18076873]
[1727037550882,12.16911594,2583.3,2582.9,1.79797279]
[1727037551213,8.29801594,2583.3,2582.9,1.79797279]
[1727037552072,6.26763,2583.3,2582.9,1.79797279]
[1727037554905,6.26763,2583.3,2583.1,1.18076873]
[1727037559413,0.10904081,2583.2,2583.1,1.18076873]
[1727037559714,6.26763,2583.3,2583.1,1.18076873]
[1727037559891,0.10904081,2583.2,2583.1,1.18076873]
[1727037560219,6.26763,2583.3,2583.1,1.18076873]
[1727037560373,0.10904081,2583.2,2583.1,1.18076873]
[1727037560573,6.26763,2583.3,2583.1,1.18076873]
[1727037560773,0.10904081,2583.2,2583.1,1.18076873]
[1727037560973,6.26763,2583.3,2583.1,1.18076873]
[1727037561196,0.10904081,2583.2,2583.1,1.18076873]
[1727037561401,6.26763,2583.3,2583.1,1.18076873]
[1727037561601,0.10904081,2583.2,2583.1,1.18076873]
[1727037561799,6.26763,2583.3,2583.1,1.18076873]
[1727037562023,0.10904081,2583.2,2583.1,1.18076873]
[1727037562208,6.26763,2583.3,2583.1,1.18076873]
[1727037562484,0.10904081,2583.2,2583.1,1.18076873]
[1727037562888,6.26763,2583.3,2583.1,1.18076873]
[1727037563182,0.10904081,2583.2,2583.1,1.18076873]
[1727037563387,6.26763,2583.3,2583.1,1.18076873]
[1727037563584,0.10904081,2583.2,2583.1,1.18076873]
[1727037563914,6.26763,2583.3,2583.1,1.18076873]
[1727037564110,0.10904081,2583.2,2583.1,1.18076873]
[1727037564525,6.26763,2583.3,2583.1,1.18076873]
[1727037564836,0.10904081,2583.2,2583.1,1.18076873]
[1727037565004,6.26763,2583.3,2583.1,1.18076873]
[1727037565186,0.10904081,2583.2,2583.1,1.18076873]
[1727037565389,6.26763,2583.3,2583.1,1.18076873]
[1727037565585,0.10904081,2583.2,2583.1,1.18076873]
[1727037565789,6.26763,2583.3,2583.1,1.18076873]
[1727037566104,0.10904081,2583.2,2583.1,1.18076873]
[1727037566490,6.26763,2583.3,2583.1,1.18076873]
[1727037566830,0.10904081,2583.2,2583.1,1.18076873]
[1727037566987,6.26763,2583.3,2583.1,1.18076873]
[1727037567193,0.10904081,2583.2,2583.1,1.18076873]
[1727037567394,6.26763,2583.3,2583.1,1.18076873]
[1727037567595,0.10904081,2583.2,2583.1,1.18076873]
[1727037567916,6.26763,2583.3,2583.1,1.18076873]
[1727037568120,0.10904081,2583.2,2583.1,1.18076873]
[1727037568490,6.26763,2583.3,2583.1,1.18076873]
[1727037568685,0.10904081,2583.2,2583.1,1.18076873]
[1727037569092,6.26763,2583.3,2583.1,1.18076873]
[1727037569291,0.10904081,2583.2,2583.1,1.18076873]
[1727037569703,6.26763,2583.3,2583.1,1.18076873]
[1727037569909,0.10904081,2583.2,2583.1,1.18076873]
[1727037570726,3.87103,2583.3,2583.1,1.18076873]
[1727037571033,0.10904081,2583.2,2583.1,1.18076873]
[1727037571246,3.87103,2583.3,2583.1,1.18076873]
[1727037571448,0.10904081,2583.2,2583.1,1.18076873]
[1727037571607,3.87103,2583.3,2583.1,1.18076873]
[1727037571813,0.10904081,2583.2,2583.1,1.18076873]
[1727037572012,3.87103,2583.3,2583.1,1.18076873]
[1727037572244,0.10904081,2583.2,2583.1,1.18076873]
[1727037572555,3.87103,2583.3,2583.1,1.18076873]
[1727037572762,0.10904081,2583.2,2583.1,1.18076873]
[1727037573047,3.87103,2583.3,2583.1,1.18076873]
[1727037573348,0.10904081,2583.2,2582.9,5.05235873]
[1727037573716,3.87103,2583.3,2582.9,5.05235873]
[1727037573914,0.10912325,2583.1,2582.9,5.05235873]
[1727037574139,3.87103,2583.3,2582.9,5.05235873]
[1727037574351,0.10912325,2583.0,2582.9,5.05235873]
[1727037574550,3.87103,2583.3,2582.9,5.05235873]
[1727037574756,0.10912325,2583.0,2582.9,1.18076873]
[1727037574950,3.87103,2583.3,2582.9,1.18076873]
[1727037575115,0.10912325,2583.0,2582.9,1.18076873]
[1727037575317,3.87103,2583.3,2582.9,1.18076873]
[1727037575946,0.10912325,2583.2,2582.9,1.18076873]
[1727037576341,3.87103,2583.3,2582.9,1.18076873]
[1727037576513,0.10912325,2583.1,2582.9,1.18076873]
[1727037576823,0.10912325,2583.0,2582.9,1.18076873]
[1727037577023,3.87103,2583.3,2582.9,2.3023606]
[1727037577218,0.10912325,2583.2,2582.9,1.18076873]
[1727037577425,3.87103,2583.3,2582.9,1.18076873]
[1727037577641,0.10912325,2583.2,2582.9,1.18076873]
[1727037577940,3.87103,2583.3,2582.9,1.18076873]
[1727037578116,0.10912325,2583.1,2582.9,1.18076873]
[1727037578315,3.87103,2583.3,2582.9,1.18076873]
[1727037578556,0.10912325,2583.0,2582.9,1.18076873]
[1727037578759,3.87103,2583.3,2582.9,6.1739506]
[1727037579235,0.10912325,2583.2,2582.9,5.05235873]
[1727037579434,3.87103,2583.3,2582.9,5.05235873]
[1727037579640,0.10912325,2583.2,2582.9,5.05235873]
[1727037579863,3.87103,2583.3,2582.9,5.05235873]
[1727037580015,0.10912325,2583.2,2582.9,5.05235873]
[1727037580363,3.87103,2583.3,2582.9,5.05235873]
[1727037580836,0.10912325,2583.2,2582.9,5.05235873]
[1727037581023,3.87103,2583.3,2582.9,5.05235873]
[1727037581225,0.10912325,2583.2,2582.9,5.05235873]
[1727037581429,3.87103,2583.3,2582.9,5.05235873]
[1727037581657,0.10912325,2583.2,2582.9,5.05235873]
[1727037581955,3.87103,2583.3,2582.9,5.05235873]
[1727037582120,0.10912325,2583.1,2582.9,5.05235873]
[1727037582321,3.87103,2583.3,2582.9,5.05235873]
[1727037582652,3.87134,2583.1,2582.8,2.2916]
[1727037582826,3.87134,2583.1,2582.3,3.87241]
[1727037582827,3.87191,2582.8,2582.3,5.05317873]
[1727037583032,0.10929782,2582.7,2582.3,7.34477873]
[1727037583330,6.17531,2582.8,2582.3,7.34477873]
[1727037583520,0.10929782,2582.6,2582.3,7.34477873]
[1727037583729,6.17531,2582.8,2582.3,7.34477873]
[1727037583914,0.10929782,2582.5,2582.3,7.34477873]
[1727037584112,2.3034,2582.8,2582.3,11.21721873]
[1727037584359,0.10929782,2582.4,2582.3,7.34477873]
[1727037584518,2.3034,2582.8,2582.3,7.34477873]
[1727037584868,2.3034,2582.8,2582.5,1.18076873]
[1727037589347,0.10929782,2582.7,2582.5,1.18076873]
[1727037589848,0.1091378,2582.6,2582.5,1.18076873]
[1727037590049,2.3034,2582.8,2582.5,1.18076873]
[1727037590248,0.10913295,2582.7,2582.5,1.18076873]
[1727037590479,2.3034,2582.8,2582.5,1.18076873]
[1727037590685,0.10913295,2582.7,2582.5,1.18076873]
[1727037590863,2.3034,2582.8,2582.5,1.18076873]
[1727037591052,0.10913295,2582.7,2582.5,1.18076873]
[1727037591367,2.3034,2582.8,2582.5,1.18076873]
[1727037591571,0.10913295,2582.6,2582.5,1.18076873]
[1727037591788,2.3034,2582.8,2582.5,1.18076873]
[1727037591969,0.10913295,2582.6,2582.5,1.18076873]
[1727037592151,2.3034,2582.8,2582.5,1.18076873]
[1727037592352,0.10913295,2582.6,2582.5,1.18076873]
[1727037592551,2.3034,2582.8,2582.5,2.3024776]
[1727037592751,0.10913295,2582.6,2582.5,1.18076873]
[1727037592987,2.3034,2582.8,2582.5,1.18076873]
[1727037593185,0.10913295,2582.6,2582.5,1.18076873]
[1727037593390,2.3034,2582.8,2582.5,1.18076873]
[1727037593565,0.10913295,2582.6,2582.5,1.18076873]
[1727037593753,2.3034,2582.8,2582.5,2.3024776]
[1727037593952,0.10913295,2582.6,2582.5,1.18076873]
[1727037594173,2.3034,2582.8,2582.5,1.18076873]
[1727037594382,0.10913295,2582.6,2582.5,1.18076873]
[1727037594562,2.3034,2582.8,2582.5,1.18076873]
[1727037594769,0.10913295,2582.6,2582.5,1.18076873]
[1727037594969,2.3034,2582.8,2582.5,2.3024776]
[1727037595280,2.3034,2582.8,2582.5,1.18076873]
[1727037595443,0.10896321,2582.7,2582.5,1.18076873]
[1727037595648,2.3034,2582.8,2582.5,1.18076873]
[1727037595878,0.10896321,2582.7,2582.5,1.18076873]
[1727037596087,2.3034,2582.8,2582.5,1.18076873]
[1727037596288,0.10896321,2582.7,2582.5,1.18076873]
[1727037596783,2.3034,2582.8,2582.5,1.18076873]
[1727037596991,0.10896321,2582.6,2582.5,1.18076873]
[1727037597295,0.10896321,2582.6,2582.5,2.3024776]
[1727037597497,2.3034,2582.8,2582.5,2.3024776]
[1727037597691,2.3034,2582.8,2582.5,1.18076873]
[1727037597692,0.10896321,2582.7,2582.5,1.18076873]
[1727037597987,2.3034,2582.8,2582.5,1.18076873]
[1727037598189,0.10896321,2582.6,2582.5,1.18076873]
[1727037598358,5.90374342,2582.9,2582.5,5.05297873]
[1727037598555,0.10896321,2582.6,2582.5,5.05297873]
[1727037598769,5.90374342,2582.9,2582.5,6.1746776]
[1727037599085,5.90374342,2582.9,2582.5,5.05297873]
[1727037599309,0.10896321,2582.8,2582.5,5.05297873]
[1727037599916,6.01287663,2582.8,2582.5,1.18076873]
[1727037600064,3.98074321,2582.8,2582.3,2.2916]
[1727037600268,4.40373342,2582.7,2582.2,5.05341873]
[1727037600464,0.10894866,2582.6,2582.2,5.05341873]
[1727037601821,3.98100866,2582.6,2582.2,5.05341873]
[1727037602875,3.98100866,2582.6,2582.2,1.18076873]
[1727037603310,3.98100866,2582.6,2581.9,2.4275]
[1727037603311,2.3716,2582.5,2581.9,2.4275]
[1727037603583,3.87282,2582.1,2581.7,2.4275]
[1727037603779,3.87349,2581.7,2581.4,2.4275]
[1727037604008,3.87356,2581.6,2581.4,0.5514234]
[1727037604190,3.87356,2581.6,2581.1,7.496402]
[1727037604396,0.10852664,2581.5,2581.2,3.87416]
[1727037604816,6.24509,2581.7,2581.3,1.18076873]
[1727037605021,0.10852664,2581.4,2581.3,1.18076873]
[1727037605178,6.24509,2581.7,2581.3,1.18076873]
[1727037605374,0.10852664,2581.4,2581.3,1.18076873]
[1727037605579,6.24509,2581.7,2581.3,1.18076873]
[1727037605779,0.10852664,2581.4,2581.3,2.31782493]
[1727037606077,6.24509,2581.7,2581.3,2.31782493]
[1727037606621,0.10852664,2581.6,2581.3,2.31782493]
[1727037608484,3.98216664,2581.6,2581.3,1.18076873]
[1727037609606,3.87374,2581.5,2581.3,1.18076873]
[1727037609811,3.98202397,2581.5,2581.3,1.18076873]
[1727037611012,0.10828397,2581.5,2581.3,1.18076873]
[1727037611524,0.10819658,2581.4,2581.3,1.18076873]
[1727037611720,7.74702,2581.7,2581.3,1.93039793]
[1727037611928,3.8735,2581.7,2581.5,1.18076873]
[1727037612129,7.74702,2581.7,2581.5,1.18076873]
[1727037612281,3.87356,2581.6,2581.5,1.18076873]
[1727037612929,3.87356,2581.6,2581.1,6.31566327]
[1727037613115,3.87356,2581.6,2581.4,1.18076873]
[1727037613425,3.87384,2581.5,2581.2,1.18076873]
[1727037613630,3.87384,2581.5,2581.1,0.01386327]
[1727037613631,3.87414,2581.3,2581.1,0.01386327]
[1727037614129,3.87416,2581.2,2581.1,0.01386327]
[1727037614684,6.22256,2581.2,2581.1,0.01386327]
[1727037619338,6.32990716,2581.2,2581.1,0.01386327]
[1727037630329,0.10734716,2581.2,2581.1,2.35576327]
[1727037630528,3.87397,2581.4,2581.1,2.70941647]
[1727037630759,0.10709464,2581.2,2581.1,2.70941647]
[1727037631029,3.87397,2581.4,2581.1,2.70941647]
[1727037631275,0.10709464,2581.2,2581.1,2.35576327]
[1727037631462,3.87395,2581.4,2581.1,2.35576327]
[1727037631643,0.10709464,2581.2,2581.1,2.35576327]
[1727037631829,3.87395,2581.4,2581.1,2.35576327]
[1727037632063,0.14685553,2581.2,2581.1,2.35576327]
[1727037632260,3.87395,2581.4,2581.1,3.09686647]
[1727037632435,0.14692352,2581.2,2581.1,3.09686647]
[1727037632635,7.74794,2581.4,2581.1,3.09686647]
[1727037632937,3.87395,2581.4,2581.1,2.35576327]
[1727037633137,0.14692352,2581.3,2581.1,2.35576327]
[1727037633549,3.87416,2581.2,2581.1,2.35576327]
[1727037633751,3.87416,2581.2,2581.1,0.01386327]
[1727037633953,4.02108352,2581.2,2581.1,0.01386327]
[1727037648728,8.31909875,2581.2,2581.1,0.01386327]
[1727037648924,8.32820893,2581.2,2581.1,0.01386327]
[1727037649103,6.29808352,2581.2,2581.1,0.01386327]
[1727037653457,8.73586304,2581.2,2581.1,0.01386327]
[1727037654972,6.29808352,2581.2,2581.1,0.01386327]
[1727037655582,8.73625111,2581.2,2581.1,0.01386327]
[1727037655884,6.29808352,2581.2,2581.1,0.01386327]
[1727037656493,8.73625111,2581.2,2581.1,0.01386327]
[1727037657095,6.29808352,2581.2,2581.1,0.01386327]
[1727037657469,8.73625111,2581.2,2581.1,0.01386327]
[1727037657668,6.29808352,2581.2,2581.1,0.01386327]
[1727037657886,8.73625111,2581.2,2581.1,0.01386327]
[1727037658095,2.17948875,2581.2,2581.1,0.01386327]
[1727037658399,0.14692352,2581.2,2581.1,2.36006327]
[1727037658758,0.14675838,2581.2,2581.1,2.36006327]
[1727037658961,7.74818,2581.3,2581.1,2.36006327]
[1727037659182,0.14675838,2581.2,2581.1,2.36006327]
[1727037659370,10.18634759,2581.3,2581.1,2.36006327]
[1727037659576,0.14675838,2581.2,2581.1,2.36006327]
[1727037660257,3.87416,2581.2,2581.1,2.36006327]
[1727037660462,4.02091838,2581.2,2581.1,2.36006327]
[1727037662690,0.14675838,2581.2,2581.1,2.36006327]
[1727037662984,6.31347008,2581.3,2581.1,2.36006327]
[1727037663379,3.87404,2581.3,2581.1,2.36006327]
[1727037663704,4.02091838,2581.2,2581.1,2.36006327]
[1727037663866,0.14675838,2581.2,2581.1,2.5960696]
[1727037664186,3.87382,2581.5,2581.1,2.5960696]
[1727037664187,2.03274292,2581.3,2581.1,2.5960696]
[1727037664497,0.14675838,2581.2,2581.1,2.5960696]
[1727037664874,2.03274292,2581.3,2581.1,2.5960696]
[1727037665075,0.14675838,2581.2,2581.1,2.5960696]
[1727037665510,2.03274292,2581.3,2581.1,2.5960696]
[1727037665709,0.14675838,2581.2,2581.1,2.5960696]
[1727037666046,2.03251112,2581.2,2581.1,0.01386327]
[1727037666193,2.1792695,2581.2,2581.1,0.01386327]
[1727037666594,0.14675838,2581.2,2581.1,0.01386327]
[1727037666824,2.03251112,2581.2,2581.1,0.01386327]
[1727037667041,0.14675838,2581.2,2581.1,0.01386327]
[1727037667223,2.03251112,2581.3,2581.2,2.2718]
[1727037667394,5.90652112,2581.3,2581.2,2.2718]
[1727037670407,5.90587585,2581.3,2581.2,2.2718]
[1727037670829,3.87401,2581.3,2581.2,2.2718]
[1727037671705,2.03186585,2581.3,2581.2,2.2718]
[1727037672825,5.90574585,2581.4,2581.2,2.2718]
[1727037674251,2.03186585,2581.3,2581.2,2.2718]
[1727037674414,5.90574585,2581.4,2581.2,2.2718]
[1727037674610,2.03186585,2581.3,2581.1,0.01386327]
[1727037675235,2.03074612,2581.3,2581.1,0.01386327]
[1727037676154,5.90462612,2581.4,2581.1,0.01386327]
[1727037676349,9.77856612,2581.4,2581.2,0.30407889]
[1727037676734,12.05046612,2581.4,2581.2,0.30407889]
[1727037677230,8.17652612,2581.4,2581.2,0.30407889]
[1727037677556,5.90462612,2581.4,2581.2,0.30407889]
[1727037678656,5.90478325,2581.4,2581.2,0.30407889]
[1727037679651,0.14688465,2581.3,2581.2,0.30407889]
[1727037682548,4.02089465,2581.3,2581.2,0.30407889]
[1727037683239,6.0517979,2581.3,2581.2,0.30407889]
[1727037683638,4.02089465,2581.3,2581.2,0.30407889]
[1727037685359,6.05144979,2581.3,2581.2,0.30407889]
[1727037686887,4.02089465,2581.3,2581.2,0.30407889]
[1727037687043,6.05144979,2581.3,2581.2,0.30407889]
[1727037688836,4.02089465,2581.3,2581.2,0.30407889]
[1727037689426,6.05144979,2581.3,2581.2,0.30407889]
[1727037689869,6.05118371,2581.3,2581.2,0.30407889]
[1727037691753,4.02089465,2581.3,2581.2,0.30407889]
[1727037695947,8.9009222,2581.3,2581.2,0.30407889]
[1727037699498,8.89529341,2581.3,2581.2,0.30407889]
[1727037704406,6.46469465,2581.3,2581.2,0.30407889]
[1727037704704,8.89392151,2581.3,2581.2,0.30407889]
[1727037708682,8.89392151,2581.3,2580.4,0.038116]
[1727037708683,6.87521,2580.5,2580.4,0.038116]
[1727037708994,9.14781,2580.5,2580.4,0.038116]
[1727037709212,12.12515097,2580.5,2580.4,0.038116]
[1727037709727,12.12157169,2580.5,2580.4,0.038116]
[1727037710428,9.29188336,2580.5,2580.4,0.038116]
[1727037712303,11.7127512,2580.5,2580.4,0.038116]
[1727037713441,9.29188336,2580.5,2580.4,0.038116]
[1727037713616,11.7127512,2580.5,2580.4,0.038116]
[1727037714558,9.29188336,2580.5,2580.4,0.038116]
[1727037714949,11.7127512,2580.5,2580.4,0.038116]
[1727037715157,9.29188336,2580.5,2580.4,0.038116]
[1727037715339,11.7127512,2580.5,2580.4,0.038116]
[1727037716363,9.29188336,2580.5,2580.4,0.038116]
[1727037721582,9.84188336,2580.5,2580.4,0.038116]
[1727037721871,11.85578623,2580.5,2580.4,0.038116]
[1727037726500,13.52794929,2580.5,2580.4,0.038116]
[1727037726779,15.23966852,2580.5,2580.4,0.038116]
[1727037726941,15.15284574,2580.5,2580.4,0.038116]
[1727037727343,17.97152888,2580.5,2580.4,0.038116]
[1727037727565,15.15284574,2580.5,2580.4,0.038116]
[1727037728381,18.43728697,2580.5,2580.4,0.038116]
[1727037728781,19.6180557,2580.5,2580.4,0.038116]
[1727037729202,16.79937256,2580.5,2580.4,0.038116]
[1727037729502,13.35698262,2580.5,2580.4,0.038116]
[1727037729705,9.25194145,2580.5,2580.4,0.038116]
[1727037730065,9.18456266,2580.5,2580.4,0.038116]
[1727037731112,12.73456266,2580.5,2580.4,0.038116]
[1727037732884,14.74796875,2580.5,2580.4,0.038116]
[1727037733079,12.73456266,2580.5,2580.4,0.038116]
[1727037733268,14.74778415,2580.5,2580.4,0.038116]
[1727037733469,12.73456266,2580.5,2580.4,0.038116]
[1727037734894,11.02265209,2580.5,2580.4,0.038116]
[1727037738112,13.35165209,2580.5,2580.4,0.038116]
[1727037740844,15.76879871,2580.5,2580.4,0.038116]
[1727037741025,13.35165209,2580.5,2580.4,0.038116]
[1727037741231,15.76879871,2580.5,2580.4,0.038116]
[1727037742236,13.35165209,2580.5,2580.4,0.038116]
[1727037747618,16.17392571,2580.5,2580.4,0.038116]
[1727037749472,16.17836765,2580.5,2580.4,0.038116]
[1727037749939,13.35165209,2580.5,2580.4,0.038116]
[1727037751330,16.69054026,2580.5,2580.4,0.038116]
[1727037752339,13.35165209,2580.5,2580.4,0.038116]
[1727037754134,16.07915053,2580.5,2580.4,0.038116]
[1727037755558,14.6144539,2580.5,2580.4,0.038116]
[1727037755763,16.07916515,2580.5,2580.4,0.038116]
[1727037760494,6.69453082,2580.5,2580.4,0.038116]
[1727037760700,5.75005209,2580.5,2580.4,0.038116]
[1727037760903,9.09968082,2580.5,2580.4,0.038116]
[1727037761104,9.09970658,2580.5,2580.4,0.038116]
[1727037761408,5.75005209,2580.5,2580.4,0.038116]
[1727037761998,8.75005209,2580.5,2580.4,0.038116]
[1727037766887,4.01928336,2580.5,2580.4,2.426716]
[1727037767089,0.14407336,2580.5,2580.4,2.6693876]
[1727037767488,2.16994881,2580.5,2580.4,2.6693876]
[1727037767889,0.14407336,2580.5,2580.4,2.6693876]
[1727037768088,1.76400471,2580.5,2580.4,2.6693876]
[1727037768324,2.16994881,2580.5,2580.4,2.426716]
[1727037768531,2.16897146,2580.5,2580.4,2.426716]
[1727037768690,6.04418146,2580.5,2580.4,2.426716]
[1727037769041,4.01928336,2580.5,2580.4,2.426716]
[1727037769907,6.04502645,2580.5,2580.4,2.426716]
[1727037772791,4.01928336,2580.5,2580.4,2.426716]
[1727037773017,6.04502645,2580.5,2580.4,2.426716]
[1727037773725,5.63824503,2580.5,2580.4,2.426716]
[1727037774558,4.01928336,2580.5,2580.4,2.426716]
[1727037774724,5.63824503,2580.5,2580.4,2.426716]
[1727037778248,4.01928336,2580.5,2580.4,2.426716]
[1727037779128,5.63824503,2580.5,2580.4,2.426716]
[1727037779416,4.01928336,2580.5,2580.4,2.426716]
[1727037779610,5.63824503,2580.5,2580.4,2.426716]
[1727037780648,6.0430277,2580.5,2580.4,2.426716]
[1727037781344,4.01928336,2580.5,2580.4,2.426716]
[1727037781667,5.63815888,2580.5,2580.4,2.426716]
[1727037782314,8.63815888,2580.5,2580.4,0.038116]
[1727037782518,9.97998336,2580.5,2580.4,0.038116]
[1727037782931,12.81292296,2580.5,2580.4,0.038116]
[1727037783763,12.81186365,2580.5,2580.4,0.038116]
[1727037783947,9.97998336,2580.5,2580.4,0.038116]
[1727037784144,12.81143813,2580.5,2580.4,0.038116]
[1727037786321,12.81270535,2580.5,2580.4,0.038116]
[1727037788352,15.14170535,2580.5,2580.4,0.038116]
[1727037791150,12.30898336,2580.5,2580.4,0.038116]
[1727037791350,15.14266455,2580.5,2580.4,0.038116]
[1727037791923,12.81366455,2580.5,2580.4,0.038116]
[1727037792332,9.97998336,2580.5,2580.4,0.038116]
[1727037792567,12.81366455,2580.5,2580.4,0.038116]
[1727037793657,9.97998336,2580.5,2580.4,0.038116]
[1727037794165,12.81366455,2580.5,2580.4,0.038116]
[1727037794561,9.97998336,2580.5,2580.4,0.038116]
[1727037794787,12.81366455,2580.5,2580.4,0.038116]
[1727037794987,12.26366455,2580.5,2580.4,0.038116]
[1727037795201,9.42998336,2580.5,2580.4,0.038116]
[1727037795495,12.26366455,2580.5,2580.4,0.038116]
[1727037795700,9.42998336,2580.5,2580.4,0.038116]
[1727037796016,12.26455003,2580.5,2580.4,0.038116]
[1727037797061,9.42998336,2580.5,2580.4,0.038116]
[1727037798891,12.26411112,2580.5,2580.4,0.038116]
[1727037799067,4.01928336,2580.5,2580.4,0.038116]
[1727037799274,6.44857127,2580.5,2580.4,2.472816]
[1727037799468,4.01928336,2580.5,2580.4,2.7200976]
[1727037800371,4.01928336,2580.5,2580.4,2.472816]
[1727037801011,7.01928336,2580.5,2580.4,2.472816]
[1727037801213,4.01928336,2580.5,2580.4,2.472816]
[1727037805436,7.63144589,2580.5,2580.4,0.038116]
[1727037805734,6.45070883,2580.5,2580.4,0.038116]
[1727037806097,4.01928336,2580.5,2580.4,0.038116]
[1727037809069,6.85590946,2580.5,2580.4,0.038116]
[1727037809226,4.01928336,2580.5,2580.4,0.038116]
[1727037811668,6.85531395,2580.5,2580.4,0.038116]
[1727037811966,4.01928336,2580.5,2580.4,0.038116]
[1727037815764,6.85616001,2580.5,2580.4,0.038116]
[1727037816956,4.01928336,2580.5,2580.4,0.038116]
[1727037819267,6.85616001,2580.5,2580.4,0.038116]
[1727037819501,4.01928336,2580.5,2580.4,0.038116]
[1727037819805,6.85684333,2580.5,2580.4,0.038116]
[1727037826486,4.01928336,2580.5,2580.4,0.038116]
[1727037828622,6.34828336,2580.5,2580.4,0.038116]
[1727037828828,6.85949035,2580.5,2580.4,0.038116]
[1727037829029,4.01928336,2580.5,2580.4,0.038116]
[1727037829192,6.86131254,2580.5,2580.4,0.038116]
[1727037829397,4.01928336,2580.5,2580.4,0.038116]
[1727037829719,6.86179814,2580.5,2580.4,0.038116]
[1727037830233,6.86199008,2580.5,2580.4,0.038116]
[1727037830439,4.01928336,2580.5,2580.4,0.038116]
[1727037834035,7.01928336,2580.5,2580.4,0.038116]
[1727037835095,10.37836953,2580.5,2580.4,0.038116]
[1727037835436,7.01928336,2580.5,2580.4,0.038116]
[1727037836032,8.20005209,2580.5,2580.4,0.038116]
[1727037836238,11.55913826,2580.5,2580.4,0.038116]
[1727037836442,17.49056469,2580.5,2580.4,0.038116]
[1727037836734,13.47135209,2580.5,2580.4,0.038116]
[1727037836898,13.61409463,2580.5,2580.4,0.038116]
[1727037837539,13.47135209,2580.5,2580.4,0.038116]
[1727037842562,17.49434563,2580.5,2580.4,0.038116]
[1727037843457,17.49442694,2580.5,2580.4,0.038116]
[1727037845024,19.25565105,2580.5,2580.4,0.038116]
[1727037845218,15.2325762,2580.5,2580.4,0.038116]
[1727037845419,19.25382763,2580.5,2580.4,0.038116]
[1727037846053,15.2325762,2580.5,2580.4,0.038116]
[1727037846254,19.25382763,2580.5,2580.4,0.038116]
[1727037846763,15.2325762,2580.5,2580.4,0.038116]
[1727037847219,19.25382763,2580.5,2580.4,0.038116]
[1727037847421,15.2325762,2580.5,2580.4,0.038116]
[1727037847741,19.25382763,2580.5,2580.4,0.038116]
[1727037847938,15.2325762,2580.5,2580.4,0.038116]
[1727037848853,19.25382763,2580.5,2580.4,0.038116]
[1727037852643,15.2325762,2580.5,2580.4,0.038116]
[1727037853331,15.19738838,2580.5,2580.4,0.038116]
[1727037854965,15.26477749,2580.5,2580.4,0.038116]
[1727037857793,15.33508429,2580.5,2580.4,0.038116]
[1727037858743,19.41608429,2580.5,2580.4,0.038116]
[1727037863658,19.41204785,2580.5,2580.4,0.038116]
[1727037873744,19.37980363,2580.5,2580.4,0.038116]
[1727037876874,19.24210772,2580.5,2580.4,0.038116]
[1727037878268,19.3094892,2580.5,2580.4,0.038116]
[1727037883597,19.24210772,2580.5,2580.4,0.038116]
[1727037889061,19.09803436,2580.5,2580.4,0.038116]
[1727037889375,19.23564161,2580.5,2580.4,0.038116]
[1727037892625,15.15464161,2580.5,2580.4,0.038116]
[1727037900285,12.76234161,2580.5,2580.4,0.038116]
[1727037902608,15.24214161,2580.5,2580.4,0.038116]
[1727037904385,15.3095302,2580.5,2580.4,0.038116]
[1727037905781,12.8297302,2580.5,2580.4,0.038116]
[1727037908711,11.64896147,2580.5,2580.4,0.038116]
[1727037909007,12.8297302,2580.5,2580.4,0.038116]
[1727037909575,12.76234161,2580.5,2580.4,0.038116]
[1727037924531,15.21034161,2580.5,2580.4,0.038116]
[1727037926949,11.58157288,2580.5,2580.4,0.038116]
[1727037927120,12.76234161,2580.5,2580.4,0.038116]
[1727037930247,12.82972711,2580.5,2580.4,0.038116]
[1727037934332,8.76995838,2580.5,2580.4,2.474416]
[1727037934628,5.70257288,2580.5,2580.4,2.474416]
[1727037934957,6.88334161,2580.5,2580.4,2.474416]
[1727037935926,9.88334161,2580.5,2580.4,2.474416]
[1727037939557,13.9134115,2580.5,2580.4,2.474416]
[1727037947436,9.88334161,2580.5,2580.4,2.474416]
[1727037948458,13.9134115,2580.5,2580.4,2.474416]
[1727037952968,9.88334161,2580.5,2580.4,2.474416]
[1727037953696,8.70257288,2580.5,2580.4,2.474416]
[1727037953837,12.05923855,2580.5,2580.4,2.474416]
[1727037955336,12.05843729,2580.5,2580.4,2.474416]
[1727037956438,13.23920602,2580.5,2580.4,2.474416]
[1727037959375,11.54945039,2580.5,2580.4,2.474416]
[1727037960189,11.54877032,2580.5,2580.4,2.474416]
[1727037961182,11.54877032,2580.5,2580.4,0.038116]
[1727037961484,8.19358598,2580.5,2580.4,0.038116]
[1727037963412,11.07258598,2580.5,2580.4,0.038116]
[1727037963696,13.34698598,2580.5,2580.4,0.038116]
[1727037977762,11.07258598,2580.5,2580.4,0.038116]
[1727037988317,15.10003939,2580.5,2580.4,0.038116]
[1727037989377,11.07258598,2580.5,2580.4,0.038116]
[1727037993888,15.09609648,2580.5,2580.4,0.038116]
[1727037994224,11.07258598,2580.5,2580.4,0.038116]
[1727037994578,8.74358598,2580.5,2580.4,0.038116]
[1727037995522,8.19358598,2580.5,2580.4,0.038116]
[1727037995676,12.217137,2580.5,2580.4,0.038116]
[1727037996706,12.217137,2580.5,2580.4,2.341616]
[1727037998214,12.217137,2580.5,2580.4,0.038116]
[1727038003640,8.19358598,2580.5,2580.4,0.038116]
[1727038003813,12.21925756,2580.5,2580.4,0.038116]
[1727038004542,8.19358598,2580.5,2580.4,0.038116]
[1727038006404,7.01281725,2580.5,2580.4,0.038116]
[1727038006540,11.03941305,2580.5,2580.4,2.530016]
[1727038006846,7.01281725,2580.5,2580.4,2.530016]
[1727038008353,7.01281725,2580.5,2580.4,2.7830176]
[1727038008519,7.01281725,2580.5,2580.4,2.530016]
[1727038011365,7.01281725,2580.5,2580.4,0.038116]
[1727038020896,8.19358598,2580.5,2580.4,0.038116]
[1727038023335,12.22018178,2580.5,2580.4,0.038116]
[1727038024336,8.19358598,2580.5,2580.4,0.038116]
[1727038024535,12.22018178,2580.5,2580.4,0.038116]
[1727038025247,14.67398178,2580.5,2580.4,0.038116]
[1727038025395,10.64738598,2580.5,2580.4,0.038116]
[1727038031261,12.97738598,2580.5,2580.4,0.038116]